bitfinex/quotes_SOLUSD_20250922
["timestamp","ask_amount","ask_price","bid_price","bid_amount"]
[1758564959102,12.59440587,221.05,221.04,0.2]
[1758564959696,9.21234963,221.05,221.04,0.2]
[1758564960200,6.32646251,221.05,221.04,0.2]
[1758564960707,7.04646251,221.05,221.04,0.2]
[1758564961612,30.52386337,221.05,221.04,0.2]
[1758564961912,32.32646251,221.05,221.04,0.2]
[1758564962297,30.52386337,221.05,221.04,0.2]
[1758564962505,32.32646251,221.05,221.04,0.2]
[1758564963711,33.04646251,221.05,221.04,0.2]
[1758564965526,4.52346085,221.07,221.04,13.79559401]
[1758564965708,4.52325883,221.08,221.04,14.49559401]
[1758564965890,26.0,221.05,221.04,14.49559401]
[1758564966292,1.80259914,221.05,221.04,0.2]
[1758564966507,28.52259914,221.05,221.04,0.2]
[1758564966790,34.0672836,221.05,221.04,0.2]
[1758564967895,38.59114697,221.05,221.04,0.2]
[1758564968413,35.21118886,221.05,221.04,0.2]
[1758564968915,32.68858972,221.05,221.04,0.2]
[1758564969096,32.32646251,221.05,221.04,0.2]
[1758564969492,33.04646251,221.05,221.04,1e-08]
[1758564969707,45.79938339,221.05,221.04,1e-08]
[1758564969897,48.83934437,221.05,221.04,1e-08]
[1758564970420,45.79876491,221.05,221.04,1e-08]
[1758564970590,48.83866256,221.05,221.04,1e-08]
[1758564971213,45.79876491,221.05,221.04,1e-08]
[1758564971996,48.83759298,221.05,221.03,1e-08]
[1758564972199,14.55490154,221.04,221.02,1e-08]
[1758564972399,39.08581609,221.03,221.02,1e-08]
[1758564972600,39.80581609,221.03,221.02,1e-08]
[1758564973335,44.33008881,221.03,221.02,1e-08]
[1758564973615,47.70413743,221.03,221.02,1e-08]
[1758564973812,47.70413743,221.03,221.0,1e-08]
[1758564973813,26.0,221.01,221.0,1e-08]
[1758564974015,65.06581609,221.01,221.0,1e-08]
[1758564974219,65.78581609,221.01,221.0,1e-08]
[1758564974621,66.80229258,221.01,221.0,1e-08]
[1758564974922,71.32697472,221.01,221.0,1e-08]
[1758564975418,69.16375777,221.01,221.0,1e-08]
[1758564976316,71.32062326,221.01,221.0,1e-08]
[1758564976816,69.16375777,221.01,221.0,1e-08]
[1758564977715,68.44375777,221.01,221.0,1e-08]
[1758564978225,69.11375777,221.01,221.0,1e-08]
[1758564979125,68.44375777,221.01,221.0,1e-08]
[1758564979424,33.34375777,221.01,221.0,0.72000001]
[1758564980224,30.52468214,221.01,221.0,0.72000001]
[1758564980422,33.34375777,221.01,221.0,0.72000001]
[1758564981231,33.34375777,221.01,221.0,1e-08]
[1758564981928,34.01375777,221.01,221.0,1e-08]
[1758564982730,33.34375777,221.01,221.0,1e-08]
[1758564984023,34.01375777,221.01,221.0,1e-08]
[1758564985009,33.34375777,221.01,221.0,1e-08]
[1758564987639,34.03375777,221.01,221.0,1e-08]
[1758564988138,33.34375777,221.01,221.0,1e-08]
[1758564988328,34.03375777,221.01,221.0,1e-08]
[1758564990022,34.03375777,221.01,220.99,1e-08]
[1758564990220,37.87907563,221.0,220.99,1e-08]
[1758564990741,38.56907563,221.0,220.99,1e-08]
[1758564991236,40.7231199,221.0,220.99,1e-08]
[1758564991940,45.24800677,221.0,220.99,1e-08]
[1758564996335,48.6198858,221.0,220.99,1e-08]
[1758564999043,10.74081017,221.0,220.99,1e-08]
[1758564999256,9.49800677,221.0,220.99,0.71000001]
[1758564999718,9.49800677,221.0,220.99,1e-08]
[1758565000956,10.18800677,221.0,220.99,1e-08]
[1758565001258,16.61283723,221.0,220.99,1e-08]
[1758565002528,26.0,220.97,220.95,0.2]
[1758565002845,37.83907563,220.96,220.95,0.2]
[1758565003046,46.06607649,220.96,220.95,0.2]
[1758565003241,48.91800605,220.96,220.94,1e-08]
[1758565003545,5.67100519,220.95,220.94,1e-08]
[1758565003749,26.0,220.92,220.86,0.71]
[1758565003932,2.81907563,220.87,220.86,0.71]
[1758565005131,7.34662577,220.87,220.86,0.71]
[1758565005729,26.0,220.88,220.86,14.30559401]
[1758565005933,4.52710599,220.9,220.87,14.30559401]
[1758565006127,26.0,220.89,220.88,0.71]
[1758565007248,30.5271402,220.89,220.88,0.71]
[1758565008256,33.34621583,220.89,220.88,0.71]
[1758565009258,30.5271402,220.89,220.88,0.71]
[1758565009457,33.34621583,220.89,220.88,0.71]
[1758565009668,33.34621583,220.89,220.85,0.71]
[1758565009971,2.81907563,220.87,220.86,0.71]
[1758565010140,2.81907563,220.87,220.84,13.59559401]
[1758565010339,30.5271402,220.89,220.84,13.59559401]
[1758565010340,2.81907563,220.88,220.84,13.59559401]
[1758565010963,41.84499071,220.89,220.84,13.59559401]
[1758565010964,2.81907563,220.87,220.85,0.71]
[1758565011361,4.52775513,220.86,220.85,13.59559401]
[1758565011860,4.52775513,220.86,220.85,14.30559401]
[1758565012162,7.34648869,220.88,220.85,14.30559401]
[1758565012358,7.34648869,220.88,220.86,0.71]
[1758565012561,0.69,220.97,220.87,13.59559401]
[1758565012859,134.2,220.88,220.85,2.81907563]
[1758565013066,134.2,220.87,220.85,2.81907563]
[1758565013358,134.2,220.87,220.86,14.30559401]
[1758565015355,2.81907563,220.93,220.87,13.59559401]
[1758565015542,26.0,220.92,220.89,13.59559401]
[1758565015741,26.0,220.92,220.9,0.71]
[1758565016148,26.0,220.92,220.91,0.71]
[1758565016561,28.81907563,220.92,220.86,13.59559401]
[1758565016764,26.0,220.92,220.91,0.71]
[1758565017369,0.66,221.02,220.92,13.59559401]
[1758565017558,2.81907563,220.96,220.92,0.7]
[1758565017752,2.81907563,220.96,220.94,13.59559401]
[1758565017959,2.81907563,220.96,220.94,14.29559401]
[1758565018859,2.81907563,220.97,220.95,0.7]
[1758565019552,4.52550119,220.97,220.95,0.7]
[1758565019753,2.81907563,220.96,220.94,13.59559401]
[1758565019953,2.81907563,220.96,220.94,14.29559401]
[1758565020216,2.81907563,220.96,220.94,13.59559401]
[1758565020363,2.81907563,220.96,220.95,0.7]
[1758565020880,2.81907563,220.97,220.95,0.7]
[1758565021062,7.34460348,220.97,220.95,0.7]
[1758565021377,7.34460348,220.97,220.91,20.94133142]
[1758565021672,30.52552785,220.97,220.96,0.7]
[1758565021845,11.31109702,221.03,220.97,13.59559401]
[1758565022045,2.81907563,221.01,220.98,0.7]
[1758565022246,28.81907563,221.0,220.97,13.59559401]
[1758565022446,28.81907563,221.0,220.98,13.59559401]
[1758565022757,3.47907563,220.99,220.94,0.7]
[1758565023089,2.81907563,220.95,220.92,13.59559401]
[1758565023373,2.81907563,220.93,220.92,13.59559401]
[1758565023568,2.81907563,220.93,220.92,0.7]
[1758565024295,7.34528762,220.94,220.92,0.7]
[1758565024460,4.52621199,220.94,220.92,0.7]
[1758565024661,4.52621199,220.94,220.93,0.7]
[1758565025062,7.34528762,220.94,220.9,0.7]
[1758565025263,4.52621199,220.94,220.92,13.59559401]
[1758565025775,4.52621199,220.94,220.92,14.29559401]
[1758565025982,4.52621199,220.94,220.92,0.7]
[1758565026164,4.52621199,220.94,220.9,0.7]
[1758565026480,2.81907563,220.92,220.89,13.59559401]
[1758565027280,2.81907563,220.91,220.89,13.59559401]
[1758565027495,2.81907563,220.91,220.88,0.7]
[1758565027496,2.81907563,220.92,220.86,13.59559401]
[1758565027657,137.01907563,220.93,220.91,13.59559401]
[1758565027856,134.2,220.93,220.91,14.29559401]
[1758565028279,138.72650226,220.93,220.91,14.29559401]
[1758565029070,134.2,220.93,220.92,0.7]
[1758565030082,134.2,220.93,220.92,14.29559401]
[1758565030462,134.2,220.93,220.92,18.82211944]
[1758565030766,26.0,220.96,220.92,18.8220209]
[1758565031081,14.2645167,221.05,220.95,16.41466964]
[1758565031264,5.54440424,221.04,220.97,2.81907563]
[1758565031457,2.81907563,221.05,220.98,3.51907563]
[1758565031658,2.81907563,221.05,221.0,13.59559401]
[1758565031881,28.16497227,221.04,221.0,13.59559401]
[1758565032054,2.16482434,221.03,221.0,13.59559401]
[1758565032257,4.52326646,221.08,221.02,13.59559401]
[1758565032560,4.52326646,221.08,221.04,13.59559401]
[1758565032561,2.1647332,221.07,221.04,13.59559401]
[1758565032765,2.1647332,221.07,221.04,0.7]
[1758565032971,2.1647332,221.07,221.02,20.93912907]
[1758565033166,35.1,221.11,221.02,20.93912907]
[1758565033167,2.81907563,221.1,221.06,13.59559401]
[1758565033368,4.52281026,221.11,221.06,0.7]
[1758565033369,2.16468716,221.09,221.06,0.7]
[1758565033574,6.51991695,221.11,221.06,0.7]
[1758565033777,2.81907563,221.12,221.08,13.59559401]
[1758565033965,0.66,221.14,221.1,13.59559401]
[1758565033966,2.16381145,221.11,221.1,13.59559401]
[1758565034165,2.81907563,221.15,221.1,0.7]
[1758565034365,2.16445337,221.14,221.11,0.7]
[1758565034580,1.80087332,221.15,221.11,0.7]
[1758565034784,4.52161331,221.16,221.12,13.59559401]
[1758565034965,2.16258189,221.15,221.1,19.91928085]
[1758565035161,2.16258189,221.15,221.12,0.7]
[1758565035380,4.52161331,221.16,221.12,0.7]
[1758565035578,6.32248663,221.16,221.12,0.7]
[1758565035774,1.80087332,221.15,221.1,13.59559401]
[1758565035977,1.80087332,221.14,221.12,13.59559401]
[1758565036177,1.80087332,221.15,221.12,13.59559401]
[1758565036994,4.52202224,221.14,221.12,13.59559401]
[1758565037200,2.49087332,221.13,221.1,13.59559401]
[1758565037398,27.80087332,221.11,221.09,13.59559401]
[1758565037606,1.80087332,221.1,221.09,13.59559401]
[1758565038188,6.32371366,221.1,221.06,13.59559401]
[1758565038382,1.80087332,221.1,221.08,13.59559401]
[1758565038802,30.52283083,221.11,221.08,13.59559401]
[1758565038803,32.32370415,221.11,221.08,14.26559401]
[1758565039093,32.32370415,221.11,221.08,0.67]
[1758565039094,26.0,221.11,221.08,0.67]
[1758565039289,6.32330672,221.12,221.08,0.67]
[1758565039498,26.0,221.14,221.09,0.67]
[1758565039677,26.0,221.14,221.1,13.59559401]
[1758565040087,26.0,221.14,221.12,13.59559401]
[1758565040290,1.80087332,221.18,221.14,13.59559401]
[1758565040588,0.2,221.19,221.14,15.39646733]
[1758565040779,0.2,221.19,221.16,13.59559401]
[1758565041584,4.72100774,221.19,221.16,13.59559401]
[1758565042602,4.72107373,221.19,221.16,0.67]
[1758565042891,0.2,221.19,221.17,13.59559401]
[1758565043283,0.2,221.19,221.18,13.59559401]
[1758565043674,2.69087332,221.19,221.18,13.59559401]
[1758565043899,2.69087332,221.19,221.14,0.67]
[1758565044099,1.80087332,221.15,221.12,13.59559401]
[1758565044308,1.80087332,221.13,221.12,13.59559401]
[1758565044488,4.52243125,221.12,221.04,0.67]
[1758565044687,30.52223855,221.13,221.05,1.80087332]
[1758565044888,1.80087332,221.12,221.06,14.26559401]
[1758565045203,1.80087332,221.09,221.08,13.59559401]
[1758565045783,1.80087332,221.09,221.05,13.59559401]
[1758565045989,1.80087332,221.09,221.05,14.26559401]
[1758565046304,1.80087332,221.09,221.06,0.67]
[1758565046674,26.0,221.13,221.08,13.59559401]
[1758565046898,27.80087332,221.13,221.1,13.59559401]
[1758565047079,26.0,221.13,221.1,13.59559401]
[1758565047892,30.52226601,221.13,221.1,13.59559401]
[1758565048478,32.32313933,221.13,221.1,13.59559401]
[1758565048998,30.52226601,221.13,221.1,13.59559401]
[1758565049194,32.32313933,221.13,221.1,13.59559401]
[1758565050500,32.99313933,221.13,221.07,13.59559401]
[1758565050690,32.99313933,221.13,221.07,14.27559401]
[1758565050883,32.99313933,221.13,221.07,16.07646733]
[1758565051196,32.99313933,221.13,221.07,14.27559401]
[1758565052199,1.80087332,221.1,221.05,13.59559401]
[1758565052387,136.67087332,221.09,221.05,13.59559401]
[1758565052583,134.2,221.09,221.05,13.59559401]
[1758565052797,134.2,221.09,221.06,0.68]
[1758565053497,138.72306963,221.09,221.06,0.68]
[1758565053708,134.2,221.09,221.06,0.68]
[1758565055403,138.72312612,221.09,221.06,0.68]
[1758565058001,0.67,221.08,221.05,13.59559401]
[1758565059088,138.72312612,221.09,221.06,0.68]
[1758565059807,139.39312612,221.09,221.05,13.59559401]
[1758565060207,139.39312612,221.09,221.05,14.27559401]
[1758565061495,139.39312612,221.09,221.05,15.39646733]
[1758565061496,134.2,221.09,221.05,15.39646733]
[1758565061697,30.52225441,221.13,221.07,15.39646733]
[1758565062012,30.52225441,221.13,221.09,13.59559401]
[1758565062304,30.52225441,221.13,221.09,14.27559401]
[1758565062998,31.19225441,221.13,221.09,14.27559401]
[1758565063184,31.19225441,221.13,221.09,13.59559401]
[1758565064014,1.80087332,221.11,221.04,15.07847324]
[1758565064305,1.80087332,221.08,221.06,13.59559401]
[1758565065010,6.99432742,221.07,221.06,13.59559401]
[1758565065233,18.30296269,221.07,221.02,35.14]
[1758565065507,18.30296269,221.07,220.94,47.99492547]
[1758565065508,1.80087332,221.03,220.95,0.68]
[1758565065720,1.80087332,221.03,220.86,20.0]
[1758565065721,1.80087332,220.98,220.92,0.68]
[1758565065895,1.80087332,220.98,220.93,35.16]
[1758565066093,1.80087332,220.96,220.93,13.83172371]
[1758565066407,1.80087332,220.95,220.93,35.16]
[1758565066610,2.47087332,220.94,220.88,0.68]
[1758565066809,1.80087332,220.93,220.89,35.18]
[1758565066984,6.32739875,220.92,220.89,35.18]
[1758565067291,6.99719807,220.93,220.89,13.59559401]
[1758565067491,6.99719807,220.93,220.89,48.77559401]
[1758565067700,1.80087332,220.94,220.89,48.77559401]
[1758565067882,1.80087332,220.94,220.89,49.45559401]
[1758565068303,2.47087332,220.93,220.89,48.77559401]
[1758565068689,1.80087332,220.94,220.9,0.68]
[1758565069106,6.32699213,220.94,220.89,48.77559401]
[1758565069422,1.80087332,220.94,220.9,0.68]
[1758565069624,26.0,220.96,220.92,13.59559401]
[1758565069800,6.32652618,220.97,220.92,14.27559401]
[1758565070122,6.32652618,220.97,220.94,13.59559401]
[1758565071106,32.32610927,220.99,220.95,0.68]
[1758565071998,32.32610927,220.99,220.94,13.59559401]
[1758565072201,1.80087332,220.98,220.94,13.59559401]
[1758565072807,1.80087332,220.98,220.94,14.27559401]
[1758565072995,1.80087332,220.99,220.94,18.12169145]
[1758565073195,26.0,221.02,220.96,13.59559401]
[1758565073496,27.80087332,221.02,220.98,13.59559401]
[1758565074205,32.32546402,221.02,220.98,13.59559401]
[1758565074517,1.80087332,221.01,220.98,13.59559401]
[1758565074711,2.47087332,221.0,220.95,13.59559401]
[1758565074911,1.80087332,220.99,220.98,13.59559401]
[1758565075113,1.80087332,221.0,220.98,13.59559401]
[1758565075724,2.47087332,220.99,220.95,13.59559401]
[1758565075901,1.80087332,220.97,220.95,48.77559401]
[1758565076211,1.80087332,220.98,220.95,48.77559401]
[1758565076413,6.9961943,220.98,220.95,48.77559401]
[1758565076627,1.80087332,220.96,220.91,13.59559401]
[1758565076939,1.80087332,220.92,220.85,13.59559401]
[1758565077223,1.80087332,220.91,220.87,13.59559401]
[1758565077410,1.80087332,220.91,220.87,14.25559401]
[1758565077793,1.80087332,220.9,220.87,14.25559401]
[1758565078603,4.70025948,220.9,220.87,14.25559401]
[1758565079301,4.70025948,220.95,220.89,18.29585349]
[1758565079497,4.70025948,220.96,220.91,13.59559401]
[1758565079821,4.70025948,220.93,220.91,13.59559401]
[1758565080116,9.22658095,220.93,220.91,13.59559401]
[1758565080318,9.22632903,220.95,220.91,14.25559401]
[1758565080703,26.0,220.96,220.93,13.59559401]
[1758565082323,9.22494162,221.01,220.95,18.29585349]
[1758565082512,0.66,221.02,220.97,13.59559401]
[1758565082718,26.0,221.0,220.97,14.25559401]
[1758565082929,0.66,221.02,220.97,14.25559401]
[1758565083098,4.70025948,221.02,220.97,14.25559401]
[1758565083518,4.70025948,221.01,220.97,14.25559401]
[1758565083699,4.70025948,221.01,220.72,22.49012475]
[1758565083700,4.70025948,220.98,220.95,35.24]
[1758565083900,4.70025948,220.96,220.91,13.59559401]
[1758565084120,4.70025948,220.96,220.92,0.66]
[1758565084121,9.22598092,220.96,220.92,0.66]
[1758565084321,4.5252964,220.98,220.93,0.66]
[1758565084526,4.70025948,220.97,220.93,0.66]
[1758565085732,4.52470718,221.01,220.95,13.59559401]
[1758565085929,5.36025948,221.0,220.96,35.26]
[1758565086307,4.70025948,221.0,220.96,35.26]
[1758565086926,4.70025948,220.99,220.96,35.26]
[1758565087131,134.2,221.01,220.97,14.25559401]
[1758565087314,134.2,221.01,220.98,0.66]
[1758565088321,138.7246882,221.01,220.97,13.59559401]
[1758565088526,143.42494768,221.01,220.97,13.59559401]
[1758565089113,138.90025948,221.01,220.97,18.12105589]
[1758565089310,134.2,221.01,220.99,13.59559401]
[1758565089516,134.2,221.01,220.98,13.59559401]
[1758565089721,134.2,221.01,220.99,0.66]
[1758565090020,134.2,221.01,221.0,13.59559401]
[1758565090426,134.2,221.01,221.0,48.85559401]
[1758565090629,0.66,221.1,221.0,58.74074036]
[1758565090928,14.99436789,221.13,221.06,13.59559401]
[1758565090929,4.52261021,221.12,221.06,13.59559401]
[1758565091120,4.52225839,221.13,221.08,13.59559401]
[1758565091318,5.18225839,221.13,221.08,13.59559401]
[1758565091514,5.36025948,221.13,221.08,13.59559401]
[1758565091716,5.36025948,221.12,221.08,48.87559401]
[1758565092546,9.22289155,221.12,221.08,48.85559401]
[1758565092836,4.70025948,221.12,221.08,48.85559401]
[1758565093626,4.52224278,221.13,221.08,48.85559401]
[1758565093627,9.22250226,221.13,221.08,48.85559401]
[1758565093817,134.2,221.14,221.1,13.59559401]
[1758565094017,138.7221054,221.14,221.09,13.59559401]
[1758565094223,134.2,221.14,221.1,0.66]
[1758565094424,134.2,221.14,221.12,13.59559401]
[1758565096116,9.22187997,221.16,221.12,13.59559401]
[1758565096616,11.39529071,221.16,221.12,13.59559401]
[1758565096817,11.39508805,221.17,221.12,13.59559401]
[1758565097113,11.39508805,221.17,221.12,14.28559401]
[1758565097326,6.87367022,221.16,221.12,35.24]
[1758565097524,7.59367022,221.16,221.12,35.24]
[1758565098133,6.87367022,221.16,221.12,35.24]
[1758565098438,7.59367022,221.16,221.12,35.24]
[1758565098620,5.24166479,221.16,221.12,35.24]
[1758565099307,32.87367022,221.17,221.12,35.24]
[1758565099510,32.87367022,221.17,221.12,35.93]
[1758565099738,32.87367022,221.17,221.14,13.59559401]
[1758565100328,37.39509613,221.17,221.14,13.59559401]
[1758565100831,7.79367022,221.19,221.13,13.59559401]
[1758565101038,0.2,221.19,221.16,13.59559401]
[1758565101419,6.87367022,221.17,221.12,13.59559401]
[1758565101627,6.87367022,221.15,221.12,13.59559401]
[1758565101935,6.87367022,221.15,221.09,0.69]
[1758565101936,6.87367022,221.14,221.1,13.59559401]
[1758565102234,6.87367022,221.11,221.1,13.59559401]
[1758565102420,7.59367022,221.11,221.1,13.59559401]
[1758565102840,12.11630601,221.11,221.1,13.59559401]
[1758565103322,12.11630601,221.11,221.08,35.26]
[1758565103520,6.87367022,221.1,221.08,35.26]
[1758565104019,11.39657984,221.1,221.07,27.50349087]
[1758565104336,11.39657984,221.1,221.08,35.26]
[1758565104713,11.3963211,221.11,221.08,35.26]
[1758565104918,11.3963211,221.11,221.08,35.95]
[1758565105316,6.87367022,221.09,220.99,6.87367022]
[1758565105637,6.87367022,221.0,220.96,0.69]
[1758565105834,6.87367022,221.01,220.97,35.97]
[1758565106144,6.87367022,221.01,220.98,14.28559401]
[1758565106619,6.87367022,221.0,220.98,14.28559401]
[1758565106815,6.87367022,221.01,220.98,14.28559401]
[1758565107313,6.87367022,221.01,221.0,13.59559401]
[1758565107519,6.87367022,221.04,221.0,14.29559401]
[1758565107715,4.52382474,221.06,221.02,13.59559401]
[1758565107923,6.87367022,221.05,221.04,13.59559401]
[1758565108621,6.87367022,221.06,221.04,48.87559401]
[1758565108827,32.87367022,221.07,221.05,13.59559401]
[1758565109137,6.87367022,221.06,221.05,13.59559401]
[1758565109735,11.39732895,221.06,221.05,13.59559401]
[1758565109927,5.24365873,221.06,221.05,13.59559401]
[1758565110117,11.39732895,221.06,221.05,13.59559401]
[1758565110528,23.42647578,221.06,221.01,13.59559401]
[1758565110716,6.87367022,221.02,221.01,13.59559401]
[1758565110917,7.59367022,221.02,220.99,13.59559401]
[1758565111126,6.87367022,221.01,220.99,13.59559401]
[1758565111332,6.87367022,221.01,220.99,35.3]
[1758565113344,6.87367022,221.0,220.99,48.87559401]
[1758565113551,7.59367022,221.0,220.91,0.7]
[1758565113850,6.87367022,220.96,220.92,48.87559401]
[1758565114150,11.39922244,220.97,220.94,13.59559401]
[1758565114324,4.52555222,220.97,220.96,13.59559401]
[1758565114523,4.52555222,220.97,220.95,13.59559401]
[1758565114524,12.11922244,220.97,220.95,13.59559401]
[1758565114829,12.11922244,220.97,220.89,0.7]
[1758565114830,7.59367022,220.96,220.94,13.59559401]
[1758565115034,6.87367022,220.95,220.94,13.59559401]
[1758565116048,3.80597873,221.11,220.95,39.59559401]
[1758565116222,7.59367022,221.11,221.05,13.59559401]
[1758565116427,6.87367022,221.1,221.06,35.72]
[1758565116624,6.87367022,221.09,221.06,35.72]
[1758565117332,6.87367022,221.09,221.05,13.59559401]
[1758565117333,6.87367022,221.07,221.05,13.59559401]
[1758565117542,6.87367022,221.06,221.05,13.59559401]
[1758565117950,6.87367022,221.07,221.05,13.59559401]
[1758565118135,6.87367022,221.08,221.05,13.59559401]
[1758565118341,4.5234541,221.07,221.05,13.59559401]
[1758565118640,11.39712432,221.07,221.05,13.59559401]
[1758565119037,4.5234541,221.07,221.05,13.59559401]
[1758565119358,26.0,221.03,220.98,35.7]
[1758565119661,6.87367022,221.0,220.99,13.59559401]
[1758565120627,11.39855709,221.0,220.99,13.59559401]
[1758565122155,26.0,220.97,220.95,13.59559401]
[1758565122363,7.59367022,220.96,220.89,13.59559401]
[1758565122662,26.0,220.97,220.89,35.78]
[1758565122663,6.87367022,220.92,220.89,35.78]
[1758565122956,6.87367022,220.94,220.9,0.7]
[1758565123344,6.87367022,220.94,220.91,13.59559401]
[1758565123546,4.52632055,220.93,220.91,13.59559401]
[1758565123726,4.52632055,220.93,220.9,13.59559401]
[1758565123926,4.52632055,220.93,220.9,14.29559401]
[1758565124825,4.52609848,220.95,220.9,13.59559401]
[1758565125026,26.0,220.95,220.91,7.57367022]
[1758565125232,26.0,220.95,220.93,13.59559401]
[1758565125724,11.3997859,220.94,220.93,35.76]
[1758565125924,11.3997859,220.94,220.87,6.87367022]
[1758565125925,23.43507511,220.94,220.85,0.7]
[1758565126738,6.87367022,220.92,220.88,0.7]
[1758565126930,6.87367022,220.92,220.9,13.59559401]
[1758565127620,6.87367022,220.91,220.9,13.59559401]
[1758565127821,11.40040056,220.91,220.89,13.59559401]
[1758565128041,7.59367022,220.9,220.89,13.59559401]
[1758565129252,6.87367022,220.9,220.89,13.59559401]
[1758565129429,6.87367022,220.9,220.86,35.78]
[1758565129430,6.87367022,220.9,220.87,13.59559401]
[1758565129628,6.87367022,220.9,220.87,14.29559401]
[1758565129839,11.40076832,220.9,220.85,13.59559401]
[1758565130030,6.87367022,220.89,220.87,13.59559401]
[1758565130351,6.87367022,220.91,220.89,13.59559401]
[1758565130647,6.87367022,220.9,220.87,13.59559401]
[1758565131539,30.52689558,220.91,220.87,14.29559401]
[1758565131726,6.87367022,220.9,220.87,14.29559401]
[1758565131928,6.87367022,220.9,220.88,35.74]
[1758565132948,6.87367022,220.91,220.88,35.74]
[1758565133150,6.87367022,220.93,220.89,14.29559401]
[1758565133450,6.87367022,220.93,220.9,0.7]
[1758565133649,6.87367022,220.93,220.92,13.59559401]
[1758565134227,26.0,220.95,220.92,13.59559401]
[1758565134436,26.0,220.95,220.92,14.29559401]
[1758565134437,6.87367022,220.95,220.92,14.29559401]
[1758565134634,4.52591273,220.95,220.92,14.29559401]
[1758565134841,11.39939356,220.96,220.92,14.29559401]
[1758565136230,11.39939356,220.96,220.92,13.59559401]
[1758565136436,6.87367022,220.95,220.92,13.59559401]
[1758565136648,6.87367022,220.94,220.92,13.59559401]
[1758565138047,11.39994646,220.94,220.93,35.7]
[1758565138248,6.87367022,220.94,220.93,35.68]
[1758565138641,11.31344821,220.98,220.93,35.68]
[1758565138642,26.0,220.98,220.94,13.59559401]
[1758565138847,13.60266613,221.11,220.96,20.46926423]
[1758565139048,13.60266613,221.11,220.95,0.67]
[1758565139049,6.87367022,221.08,221.02,13.59559401]
[1758565139228,6.87367022,221.08,221.04,13.59559401]
[1758565139432,6.87367022,221.08,221.04,14.26559401]
[1758565139634,6.87367022,221.09,221.04,14.26559401]
[1758565140243,4.5232495,221.08,221.04,14.26559401]
[1758565140634,6.87367022,221.1,221.04,13.59559401]
[1758565140838,6.87367022,221.1,221.04,14.26559401]
[1758565141039,6.87367022,221.1,221.04,18.78959409]
[1758565141240,6.87367022,221.11,221.04,25.66326431]
[1758565141440,11.39610147,221.12,221.06,13.59559401]
[1758565141740,11.39610147,221.12,221.08,13.59559401]
[1758565142646,6.87367022,221.15,221.1,13.59559401]
[1758565142953,11.39548799,221.15,221.12,13.59559401]
[1758565143158,11.39523477,221.17,221.12,13.59559401]
[1758565143536,38.11523477,221.17,221.12,13.59559401]
[1758565143732,6.87367022,221.16,221.12,13.59559401]
[1758565143960,6.87367022,221.16,221.11,0.67]
[1758565143961,6.87367022,221.16,221.14,13.59559401]
[1758565144463,26.0,221.15,221.14,13.59559401]
[1758565144646,37.39523477,221.17,221.14,13.59559401]
[1758565144647,0.2,221.18,221.14,14.26559401]
[1758565144843,4.72120554,221.18,221.14,14.26559401]
[1758565145744,0.2,221.18,221.15,0.67]
[1758565145933,0.2,221.18,221.16,0.67]
[1758565146139,0.2,221.18,221.14,13.59559401]
[1758565146336,0.2,221.18,221.15,0.67]
[1758565146640,0.2,221.18,221.17,13.59559401]
[1758565146968,4.72120444,221.18,221.17,13.59559401]
[1758565147171,11.59487466,221.18,221.17,13.59559401]
[1758565149060,4.72120444,221.18,221.17,13.59559401]
[1758565150148,4.72120444,221.18,221.17,49.23559401]
[1758565150560,4.72120444,221.18,221.17,13.59559401]
[1758565151960,11.59487466,221.18,221.17,13.59559401]
[1758565152157,12.31487466,221.18,221.12,13.59559401]
[1758565152346,6.87367022,221.14,221.12,49.19559401]
[1758565152539,6.87367022,221.15,221.12,49.19559401]
[1758565152754,6.87367022,221.16,221.12,49.19559401]
[1758565153159,4.52181777,221.15,221.12,49.19559401]
[1758565155281,4.52181777,221.15,221.14,13.59559401]
[1758565156566,138.72181777,221.15,221.14,13.59559401]
[1758565158368,134.2,221.15,221.14,14.31559401]
[1758565160073,0.2,221.18,221.14,19.00516607]
[1758565160291,0.2,221.18,221.16,18.28516607]
[1758565160454,0.2,221.18,221.17,49.15559401]
[1758565160655,0.2,221.18,221.17,13.59559401]
[1758565160971,4.72120444,221.18,221.17,49.87559401]
[1758565161165,36.1207765,221.18,221.12,13.59559401]
[1758565161361,4.68957206,221.14,221.12,49.13559401]
[1758565161960,4.68957206,221.15,221.12,49.13559401]